fUSD/lending_fUSD_20251225
["ID","MTS","AMOUNT","RATE_DAILY","PERIOD"]
[399774273,1766663439507,-300.0,0.00011862,2]
[399774274,1766663439518,-200.0,0.00011882,2]
[399774276,1766663439528,-500.0,0.00011882,2]
[399774277,1766663439539,-200.0,0.00011882,2]
[399774278,1766663439549,-1049.37,0.00011882,2]
[399774279,1766663439561,-500.0,0.000119,2]
[399774280,1766663439572,-500.0,0.000119,2]
[399774281,1766663439583,-500.26609484,0.000119,2]
[399774282,1766663439594,-174.86770557,0.000119,2]
[399774283,1766663439608,-164.91223401,0.000119,2]
[399774285,1766663439619,-500.0,0.000119,2]
[399774286,1766663439628,-500.0,0.000119,2]
[399774287,1766663439638,-500.0,0.000119,2]
[399774288,1766663439648,-578.60342662,0.000119,2]
[399774289,1766663439658,-157.08021771,0.000119,2]
[399774290,1766663439668,-500.0,0.000119,2]
[399774291,1766663439679,-322.88246699,0.000119,2]
[399774292,1766663439690,-500.0,0.000119,2]
[399774293,1766663439700,-162.14010423,0.000119,2]
[399774294,1766663439711,-501.7326664,0.000119,2]
[399774295,1766663439721,-500.0,0.000119,2]
[399774296,1766663439731,-500.0,0.000119,2]
[399774298,1766663439741,-43904.0068897,0.0001205,2]
[399774299,1766663439752,-2777.93,0.00012086,2]
[399774300,1766663439762,-1049.37,0.00012156,2]
[399774301,1766663439771,-500.0,0.00012193,2]
[399774302,1766663439782,-600.0,0.00012246,2]
[399774303,1766663439793,-4305.33,0.00012254,2]
[399774304,1766663439803,-200.0,0.0001243,2]
[399774305,1766663439812,-500.0,0.0001243,2]
[399774306,1766663439822,-200.0,0.0001243,2]
[399774308,1766663439832,-1049.37,0.0001243,2]
[399774309,1766663439843,-1866.24903804,0.00012446,2]
[399774311,1766663440134,-500.0,0.00012448,2]
[399774312,1766663440145,-168.84175508,0.00012448,2]
[399774313,1766663440156,-2777.93,0.00012464,2]
[399774315,1766663440166,-1049.38238286,0.00012704,2]
[399774316,1766663440178,-425.47863299,0.00012722,2]
[399774317,1766663440188,-592.70788689,0.00012733,2]
[399774318,1766663440199,-43904.0068897,0.00012743,2]
[399774319,1766663440209,-1154.55325764,0.00012761,2]
[399774320,1766663440220,-2777.93,0.00012842,2]
[399774321,1766663440231,-587.0,0.00012917,2]
[399774322,1766663440241,-587.0,0.00012917,2]
[399774323,1766663440251,-2351.0,0.00012935,2]
[399774324,1766663440261,-275.0,0.00012953,2]
[399774325,1766663440270,-200.0,0.00012978,2]
[399774326,1766663440280,-500.0,0.00012978,2]
[399774327,1766663440290,-200.0,0.00012978,2]
[399774328,1766663440300,-1600.0,0.00013028,2]
[399774329,1766663440315,-2777.93,0.0001322,2]
[399774330,1766663440325,-1866.24903804,0.00013337,2]
[399774331,1766663440335,-159.91,0.00013392,2]
[399774332,1766663440346,-43904.0068897,0.00013436,2]
[399774333,1766663440357,-215.0738,0.00013525,2]
[399774334,1766663440367,-200.0,0.00013526,2]
[399774335,1766663440379,-500.0,0.00013526,2]
[399774336,1766663440391,-200.0,0.00013526,2]
[399774337,1766663440400,-2777.93,0.00013597,2]
[399774338,1766663440411,-500.0,0.00013698,2]
[399774339,1766663440421,-500.0,0.00013698,2]
[399774340,1766663440431,-500.0,0.00013698,2]
[399774341,1766663440442,-289.9076874,0.00013698,2]
[399774343,1766663440453,-500.0,0.00013698,2]
[399774344,1766663440463,-500.0,0.00013698,2]
[399774345,1766663440473,-500.0,0.00013698,2]
[399774346,1766663440484,-500.0,0.00013698,2]
[399774347,1766663440494,-500.0,0.00013698,2]
[399774348,1766663440503,-500.0,0.00013698,2]
[399774349,1766663440514,-500.0,0.00013698,2]
[399774350,1766663440524,-500.0,0.00013698,2]
[399774351,1766663440533,-500.0,0.00013698,2]
[399774353,1766663440543,-500.0,0.00013698,2]
[399774354,1766663440553,-500.0,0.00013698,2]
[399774355,1766663440563,-500.0,0.00013698,2]
[399774356,1766663440572,-500.0,0.00013698,2]
[399774357,1766663440582,-500.0,0.00013698,2]
[399774358,1766663440592,-500.0,0.00013698,2]
[399774359,1766663440601,-500.0,0.00013698,2]
[399774360,1766663440612,-500.0,0.00013698,2]
[399774361,1766663440622,-500.0,0.00013698,2]
[399774362,1766663440631,-500.0,0.00013698,2]
[399774363,1766663440641,-500.0,0.00013698,2]
[399774364,1766663440651,-500.0,0.00013698,2]
[399774365,1766663440662,-500.0,0.00013698,2]
[399774366,1766663440672,-155.19830899,0.00013698,2]
[399774367,1766663440683,-500.0,0.00013698,2]
[399774368,1766663440693,-500.0,0.00013698,2]
[399774369,1766663440703,-500.0,0.00013698,2]
[399774370,1766663440713,-500.0,0.00013698,2]
[399774371,1766663440724,-500.0,0.00013698,2]
[399774372,1766663440733,-500.0,0.00013698,2]
[399774373,1766663440744,-500.0,0.00013698,2]
[399774374,1766663440754,-500.0,0.00013698,2]
[399774375,1766663440764,-500.0,0.00013698,2]
[399774376,1766663440773,-500.0,0.00013698,2]
[399774377,1766663440783,-321.45865313,0.00013698,2]
[399774378,1766663440794,-708.1,0.00013699,2]
[399774379,1766663440804,-177.52316721,0.00013699,2]
[399774380,1766663440816,-1154.55325764,0.00013796,2]
[399774381,1766663440827,-166.66,0.00013974,2]
[399774382,1766663440837,-2777.93,0.00013975,2]
[399774383,1766663440848,-200.0,0.00014074,2]
[399774384,1766663440858,-500.0,0.00014074,2]
[399774386,1766663440868,-200.0,0.00014074,2]
[399774387,1766663440879,-250.0,0.00014127,2]
[399774388,1766663440888,-43904.0068897,0.00014128,2]
[399774389,1766663440898,-823.0,0.00014199,2]
[399774390,1766663440909,-823.0,0.00014199,2]
[399774391,1766663440918,-1866.24903804,0.00014227,2]
[399774392,1766663440929,-3292.0,0.00014229,2]
[399774393,1766663440939,-166.66,0.00014268,2]
[399774394,1766663440949,-500.0,0.00014275,2]
[399774395,1766663440958,-500.0,0.00014275,2]
[399774396,1766663440968,-500.0,0.00014275,2]
[399774397,1766663440978,-507.55739974,0.00014275,2]
[399774398,1766663440988,-2777.93,0.00014353,2]
[399774399,1766663440998,-1600.0,0.00014476,2]
[399774400,1766663441008,-166.66,0.00014562,2]
[399774401,1766663441018,-307.97721752,0.00014622,2]
[399774402,1766663441029,-500.0,0.00014622,2]
[399774403,1766663441038,-600.0,0.00014653,2]
[399774404,1766663441048,-43904.0068897,0.00014821,2]
[399774405,1766663441059,-1154.55325764,0.00014831,2]
[399774406,1766663441070,-166.66,0.00014856,2]
[399774407,1766663441080,-246.80340688,0.000149,2]
[399774408,1766663441089,-1866.24903804,0.00015118,2]
[399774410,1766663441099,-166.66,0.0001515,2]
[399774411,1766663441110,-500.0,0.00015206,2]
[399774412,1766663441120,-500.0,0.00015206,2]
[399774413,1766663441130,-115252.43,0.00015207,2]
[399774414,1766663441140,-150.0,0.00015288,2]
[399774415,1766663441150,-151.84637891,0.00015288,2]
[399774416,1766663441161,-281.85288871,0.00015288,2]
[399774417,1766663441170,-268.21444293,0.00015288,2]
[399774419,1766663441181,-150.0,0.00015288,2]
[399774420,1766663441191,-188.33568841,0.00015288,2]
[399774421,1766663441201,-199.61844687,0.00015288,2]
[399774422,1766663441210,-150.0,0.00015288,2]
[399774423,1766663441220,-389.55243689,0.00015288,2]
[399774424,1766663441231,-150.0,0.00015288,2]
[399774425,1766663441241,-150.0,0.00015288,2]
[399774426,1766663441251,-150.0,0.00015288,2]
[399774427,1766663441262,-150.0,0.00015288,2]
[399774428,1766663441273,-150.0,0.00015288,2]
[399774429,1766663441283,-150.0,0.00015288,2]
[399774430,1766663441294,-191.79160584,0.00015288,2]
[399774431,1766663441303,-151.84637891,0.00015305,2]
[399774433,1766663441315,-281.85288871,0.00015305,2]
[399774434,1766663441327,-268.21444293,0.00015305,2]
[399774435,1766663441337,-188.33568841,0.00015305,2]
[399774436,1766663441347,-199.61844687,0.00015305,2]
[399774437,1766663441357,-389.55243689,0.00015305,2]
[399774438,1766663441368,-150.0,0.00015312,2]
[399774439,1766663441378,-150.0,0.00015322,2]
[399774440,1766663441388,-151.84637891,0.00015322,2]
[399774441,1766663441399,-281.85288871,0.00015322,2]
[399774443,1766663441409,-268.21444293,0.00015322,2]
[399774444,1766663441419,-188.33568841,0.00015322,2]
[399774445,1766663441428,-199.61844687,0.00015322,2]
[399774446,1766663441439,-389.55243689,0.00015322,2]
[399774447,1766663441448,-600.0,0.00015331,2]
[399774448,1766663441459,-150.0,0.00015336,2]
[399774449,1766663441470,-150.0,0.00015338,2]
[399774450,1766663441480,-151.84637891,0.00015339,2]
[399774451,1766663441492,-281.85288871,0.00015339,2]
[399774453,1766663441502,-268.21444293,0.00015339,2]
[399774454,1766663441512,-188.33568841,0.00015339,2]
[399774455,1766663441523,-199.61844687,0.00015339,2]
[399774456,1766663441533,-389.55243689,0.00015339,2]
[399774457,1766663441543,-150.0,0.00015339,2]
[399774458,1766663441553,-150.0,0.00015356,2]
[399774459,1766663441564,-150.0,0.00015356,2]
[399774460,1766663441574,-151.84637891,0.00015356,2]
[399774461,1766663441585,-281.85288871,0.00015356,2]
[399774462,1766663441595,-268.21444293,0.00015356,2]
[399774463,1766663441606,-188.33568841,0.00015356,2]
[399774464,1766663441616,-199.61844687,0.00015356,2]
[399774465,1766663441626,-389.55243689,0.00015356,2]
[399774466,1766663441637,-150.0,0.00015359,2]
[399774467,1766663441648,-151.84637891,0.00015373,2]
[399774468,1766663441658,-281.85288871,0.00015373,2]
[399774469,1766663441668,-268.21444293,0.00015373,2]
[399774470,1766663441679,-188.33568841,0.00015373,2]
[399774471,1766663441689,-199.61844687,0.00015373,2]
[399774472,1766663441698,-389.55243689,0.00015373,2]
[399774473,1766663441709,-150.0,0.00015383,2]
[399774474,1766663441719,-150.0,0.00015388,2]
[399774475,1766663441728,-150.0,0.0001539,2]
[399774476,1766663441738,-151.84637891,0.00015391,2]
[399774477,1766663441748,-281.85288871,0.00015391,2]
[399774478,1766663441759,-268.21444293,0.00015391,2]
[399774479,1766663441769,-188.33568841,0.00015391,2]
[399774480,1766663441779,-199.61844687,0.00015391,2]
[399774481,1766663441789,-389.55243689,0.00015391,2]
[399774482,1766663441799,-150.0,0.00015391,2]
[399774483,1766663441809,-150.0,0.00015407,2]
[399774484,1766663441819,-151.84637891,0.00015408,2]
[399774485,1766663441830,-281.85288871,0.00015408,2]
[399774486,1766663441840,-268.21444293,0.00015408,2]
[399774487,1766663441850,-188.33568841,0.00015408,2]
[399774488,1766663441859,-199.61844687,0.00015408,2]
[399774489,1766663441869,-389.55243689,0.00015408,2]
[399774490,1766663441879,-150.0,0.00015424,2]
[399774491,1766663441890,-150.0,0.00015424,2]
[399774492,1766663441900,-151.84637891,0.00015425,2]
[399774494,1766663441911,-281.85288871,0.00015425,2]
[399774495,1766663441920,-268.21444293,0.00015425,2]
[399774496,1766663441930,-188.33568841,0.00015425,2]
[399774497,1766663441940,-199.61844687,0.00015425,2]
[399774498,1766663441951,-389.55243689,0.00015425,2]
[399774499,1766663441962,-150.0,0.00015429,2]
[399774500,1766663441972,-150.0,0.00015431,2]
[399774501,1766663441982,-150.0,0.00015438,2]
[399774502,1766663441992,-151.84637891,0.00015442,2]
[399774503,1766663442002,-281.85288871,0.00015442,2]
[399774504,1766663442012,-268.21444293,0.00015442,2]
[399774505,1766663442022,-188.33568841,0.00015442,2]
[399774507,1766663442032,-199.61844687,0.00015442,2]
[399774508,1766663442042,-389.55243689,0.00015442,2]
[399774509,1766663442052,-150.0,0.00015442,2]
[399774510,1766663442062,-166.66,0.00015445,2]
[399774511,1766663442072,-150.0,0.00015455,2]
[399774512,1766663442082,-150.0,0.00015458,2]
[399774513,1766663442093,-151.84637891,0.00015459,2]
[399774514,1766663442103,-281.85288871,0.00015459,2]
[399774516,1766663442113,-268.21444293,0.00015459,2]
[399774517,1766663442123,-188.33568841,0.00015459,2]
[399774518,1766663442132,-199.61844687,0.00015459,2]
[399774519,1766663442142,-389.55243689,0.00015459,2]
[399774520,1766663442153,-151.84637891,0.00015476,2]
[399774521,1766663442164,-281.85288871,0.00015476,2]
[399774522,1766663442174,-268.21444293,0.00015476,2]
[399774523,1766663442184,-188.33568841,0.00015476,2]
[399774524,1766663442194,-199.61844687,0.00015476,2]
[399774525,1766663442204,-389.55243689,0.00015476,2]
[399774527,1766663442214,-150.0,0.00015476,2]
[399774528,1766663442224,-150.0,0.00015479,2]
[399774529,1766663442234,-150.0,0.00015488,2]
[399774530,1766663442244,-150.0,0.00015492,2]
[399774531,1766663442255,-150.0,0.00015492,2]
[399774532,1766663442265,-151.84637891,0.00015494,2]
[399774533,1766663442275,-281.85288871,0.00015494,2]
[399774534,1766663442285,-268.21444293,0.00015494,2]
[399774536,1766663442295,-188.33568841,0.00015494,2]
[399774537,1766663442305,-199.61844687,0.00015494,2]
[399774538,1766663442318,-389.55243689,0.00015494,2]
[399774539,1766663442328,-150.0,0.00015494,2]
[399774540,1766663442338,-150.0,0.00015503,2]
[399774541,1766663442348,-151.84637891,0.00015511,2]
[399774542,1766663442359,-281.85288871,0.00015511,2]
[399774543,1766663442368,-268.21444293,0.00015511,2]
[399774544,1766663442378,-188.33568841,0.00015511,2]
[399774545,1766663442390,-199.61844687,0.00015511,2]
[399774547,1766663442399,-389.55243689,0.00015511,2]
[399774548,1766663442410,-43904.0068897,0.00015514,2]
[399774549,1766663442420,-150.0,0.00015525,2]
[399774550,1766663442430,-150.0,0.00015527,2]
[399774551,1766663442440,-151.84637891,0.00015528,2]
[399774552,1766663442450,-281.85288871,0.00015528,2]
[399774553,1766663442460,-268.21444293,0.00015528,2]
[399774554,1766663442470,-188.33568841,0.00015528,2]
[399774555,1766663442480,-199.61844687,0.00015528,2]
[399774556,1766663442489,-389.55243689,0.00015528,2]
[399774558,1766663442499,-150.0,0.00015537,2]
[399774559,1766663442509,-151.84637891,0.00015545,2]
[399774560,1766663442518,-281.85288871,0.00015545,2]
[399774561,1766663442528,-268.21444293,0.00015545,2]
[399774562,1766663442538,-188.33568841,0.00015545,2]
[399774563,1766663442548,-199.61844687,0.00015545,2]
[399774564,1766663442558,-389.55243689,0.00015545,2]
[399774565,1766663442568,-150.0,0.00015545,2]
[399774566,1766663442578,-150.0,0.00015551,2]
[399774568,1766663442588,-150.0,0.00015559,2]
[399774569,1766663442598,-150.0,0.00015559,2]
[399774570,1766663442608,-151.84637891,0.00015562,2]
[399774571,1766663442617,-281.85288871,0.00015562,2]
[399774572,1766663442628,-268.21444293,0.00015562,2]
[399774573,1766663442638,-188.33568841,0.00015562,2]
[399774574,1766663442647,-199.61844687,0.00015562,2]
[399774575,1766663442657,-389.55243689,0.00015562,2]
[399774576,1766663442667,-150.0,0.00015571,2]
[399774577,1766663442677,-150.0,0.00015575,2]
[399774578,1766663442687,-151.84637891,0.00015579,2]
[399774580,1766663442697,-281.85288871,0.00015579,2]
[399774581,1766663442708,-268.21444293,0.00015579,2]
[399774582,1766663442718,-188.33568841,0.00015579,2]
[399774583,1766663442728,-199.61844687,0.00015579,2]
[399774584,1766663442739,-389.55243689,0.00015579,2]
[399774585,1766663442749,-150.0,0.00015587,2]
[399774586,1766663442759,-309.46072033,0.00015592,2]
[399774587,1766663442769,-150.0,0.00015593,2]
[399774588,1766663442779,-151.84637891,0.00015597,2]
[399774589,1766663442789,-281.85288871,0.00015597,2]
[399774590,1766663442799,-268.21444293,0.00015597,2]
[399774592,1766663442808,-188.33568841,0.00015597,2]
[399774593,1766663442818,-199.61844687,0.00015597,2]
[399774594,1766663442828,-389.55243689,0.00015597,2]
[399774595,1766663442838,-150.0,0.00015597,2]
[399774596,1766663442847,-150.0,0.00015599,2]
[399774597,1766663442857,-813.0,0.00015608,2]
[399774598,1766663442867,-1152.0,0.00015608,2]
[399774599,1766663442877,-151.84637891,0.00015614,2]
[399774600,1766663442887,-281.85288871,0.00015614,2]
[399774601,1766663442897,-268.21444293,0.00015614,2]
[399774602,1766663442907,-188.33568841,0.00015614,2]
[399774604,1766663442917,-199.61844687,0.00015614,2]
[399774605,1766663442926,-389.55243689,0.00015614,2]
[399774606,1766663442936,-150.0,0.00015623,2]
[399774607,1766663442946,-150.0,0.00015627,2]
[399774608,1766663442956,-150.0,0.00015627,2]
[399774609,1766663442966,-151.84637891,0.00015631,2]
[399774610,1766663442975,-281.85288871,0.00015631,2]
[399774611,1766663442985,-268.21444293,0.00015631,2]
[399774612,1766663442995,-188.33568841,0.00015631,2]
[399774614,1766663443005,-199.61844687,0.00015631,2]
[399774615,1766663443015,-389.55243689,0.00015631,2]
[399774616,1766663443026,-150.0,0.00015637,2]
[399774617,1766663443036,-150.0,0.00015647,2]
[399774618,1766663443047,-151.84637891,0.00015648,2]
[399774619,1766663443056,-281.85288871,0.00015648,2]
[399774620,1766663443066,-268.21444293,0.00015648,2]
[399774621,1766663443077,-188.33568841,0.00015648,2]
[399774622,1766663443086,-199.61844687,0.00015648,2]
[399774623,1766663443096,-389.55243689,0.00015648,2]
[399774624,1766663443105,-150.0,0.00015648,2]
[399774626,1766663443115,-4609.0,0.00015652,2]
[399774627,1766663443124,-150.0,0.00015661,2]
[399774628,1766663443134,-151.84637891,0.00015665,2]
[399774629,1766663443144,-281.85288871,0.00015665,2]
[399774631,1766663443154,-268.21444293,0.00015665,2]
[399774633,1766663443164,-188.33568841,0.00015665,2]
[399774635,1766663443174,-199.61844687,0.00015665,2]
[399774637,1766663443184,-389.55243689,0.00015665,2]
[399774639,1766663443195,-150.0,0.00015665,2]
[399774642,1766663443205,-150.0,0.0001567,2]
[399774644,1766663443214,-151.84637891,0.00015682,2]
[399774646,1766663443224,-281.85288871,0.00015682,2]
[399774648,1766663443234,-268.21444293,0.00015682,2]
[399774649,1766663443244,-188.33568841,0.00015682,2]
[399774650,1766663443254,-199.61844687,0.00015682,2]
[399774651,1766663443264,-389.55243689,0.00015682,2]
[399774653,1766663443274,-150.0,0.00015687,2]
[399774654,1766663443284,-150.0,0.00015694,2]
[399774655,1766663443294,-150.0,0.00015695,2]
[399774657,1766663443305,-150.0,0.00015695,2]
[399774658,1766663443321,-151.84637891,0.00015699,2]
[399774659,1766663443331,-281.85288871,0.00015699,2]
[399774660,1766663443342,-268.21444293,0.00015699,2]
[399774661,1766663443352,-188.33568841,0.00015699,2]
[399774662,1766663443362,-199.61844687,0.00015699,2]
[399774663,1766663443372,-389.55243689,0.00015699,2]
[399774664,1766663443382,-150.0,0.00015699,2]
[399774665,1766663443392,-150.0,0.00015712,2]
[399774666,1766663443402,-151.84637891,0.00015717,2]
[399774668,1766663443412,-281.85288871,0.00015717,2]
[399774669,1766663443423,-268.21444293,0.00015717,2]
[399774670,1766663443432,-188.33568841,0.00015717,2]
[399774671,1766663443443,-199.61844687,0.00015717,2]
[399774672,1766663443458,-389.55243689,0.00015717,2]
[399774673,1766663443470,-150.0,0.00015718,2]
[399774674,1766663443483,-150.0,0.00015729,2]
[399774675,1766663443496,-151.84637891,0.00015734,2]
[399774677,1766663443509,-281.85288871,0.00015734,2]
[399774678,1766663443522,-268.21444293,0.00015734,2]
[399774679,1766663443535,-188.33568841,0.00015734,2]
[399774680,1766663443546,-199.61844687,0.00015734,2]
[399774681,1766663443557,-389.55243689,0.00015734,2]
[399774682,1766663443568,-150.0,0.00015737,2]
[399774683,1766663443578,-150.0,0.00015742,2]
[399774684,1766663443590,-151.84637891,0.00015751,2]
[399774685,1766663443602,-281.85288871,0.00015751,2]
[399774687,1766663443614,-268.21444293,0.00015751,2]
[399774688,1766663443625,-188.33568841,0.00015751,2]
[399774689,1766663443638,-199.61844687,0.00015751,2]
[399774690,1766663443651,-389.55243689,0.00015751,2]
[399774691,1766663443664,-150.0,0.00015751,2]
[399774692,1766663443676,-150.0,0.00015763,2]
[399774693,1766663443688,-150.0,0.00015763,2]
[399774694,1766663443700,-150.0,0.00015766,2]
[399774696,1766663443713,-151.84637891,0.00015768,2]
[399774697,1766663443724,-281.85288871,0.00015768,2]
[399774698,1766663443736,-268.21444293,0.00015768,2]
[399774699,1766663443748,-188.33568841,0.00015768,2]
[399774700,1766663443760,-199.61844687,0.00015768,2]
[399774701,1766663443772,-389.55243689,0.00015768,2]
[399774702,1766663443785,-151.84637891,0.00015785,2]
[399774704,1766663443797,-281.85288871,0.00015785,2]
[399774705,1766663443809,-268.21444293,0.00015785,2]
[399774706,1766663443820,-188.33568841,0.00015785,2]
[399774707,1766663443832,-199.61844687,0.00015785,2]
[399774708,1766663443843,-389.55243689,0.00015785,2]
[399774709,1766663443855,-150.0,0.00015787,2]
[399774710,1766663443866,-150.0,0.0001579,2]
[399774711,1766663443878,-150.0,0.00015797,2]
[399774712,1766663443891,-151.84637891,0.00015802,2]
[399774714,1766663443903,-281.85288871,0.00015802,2]
[399774715,1766663443915,-268.21444293,0.00015802,2]
[399774716,1766663443927,-188.33568841,0.00015802,2]
[399774717,1766663443940,-199.61844687,0.00015802,2]
[399774718,1766663443951,-389.55243689,0.00015802,2]
[399774719,1766663443964,-150.0,0.00015802,2]
[399774720,1766663443975,-150.0,0.00015814,2]
[399774721,1766663443988,-151.84637891,0.0001582,2]
[399774723,1766663444000,-281.85288871,0.0001582,2]
[399774724,1766663444012,-268.21444293,0.0001582,2]
[399774725,1766663444024,-188.33568841,0.0001582,2]
[399774726,1766663444036,-199.61844687,0.0001582,2]
[399774727,1766663444050,-389.55243689,0.0001582,2]
[399774728,1766663444061,-150.0,0.00015831,2]
[399774729,1766663444073,-150.0,0.00015831,2]
[399774730,1766663444085,-151.84637891,0.00015837,2]
[399774731,1766663444097,-281.85288871,0.00015837,2]
[399774733,1766663444108,-268.21444293,0.00015837,2]
[399774734,1766663444119,-188.33568841,0.00015837,2]
[399774735,1766663444133,-199.61844687,0.00015837,2]
[399774736,1766663444146,-389.55243689,0.00015837,2]
[399774737,1766663444157,-150.0,0.00015837,2]
[399774738,1766663444168,-150.0,0.00015838,2]
[399774739,1766663444180,-151.84637891,0.00015854,2]
[399774740,1766663444192,-281.85288871,0.00015854,2]
[399774741,1766663444204,-268.21444293,0.00015854,2]
[399774742,1766663444216,-188.33568841,0.00015854,2]
[399774743,1766663444228,-199.61844687,0.00015854,2]
[399774745,1766663444240,-389.55243689,0.00015854,2]
[399774746,1766663444250,-150.0,0.00015854,2]
[399774747,1766663444263,-150.0,0.00015854,2]
[399774748,1766663444273,-150.0,0.00015854,2]
[399774749,1766663444286,-150.0,0.00015862,2]
[399774750,1766663444297,-150.0,0.00015865,2]
[399774751,1766663444309,-1154.55325764,0.00015865,2]
[399774752,1766663444325,-151.84637891,0.00015871,2]
[399774753,1766663444338,-281.85288871,0.00015871,2]
[399774754,1766663444351,-268.21444293,0.00015871,2]
[399774755,1766663444363,-188.33568841,0.00015871,2]
[399774756,1766663444375,-199.61844687,0.00015871,2]
[399774757,1766663444387,-389.55243689,0.00015871,2]
[399774758,1766663444399,-150.0,0.00015886,2]
[399774759,1766663444410,-150.0,0.00015887,2]
[399774761,1766663444422,-151.84637891,0.00015888,2]
[399774762,1766663444435,-281.85288871,0.00015888,2]
[399774763,1766663444446,-268.21444293,0.00015888,2]
[399774764,1766663444457,-188.33568841,0.00015888,2]
[399774765,1766663444468,-199.61844687,0.00015888,2]
[399774766,1766663444479,-389.55243689,0.00015888,2]
[399774767,1766663444490,-150.0,0.00015899,2]
[399774768,1766663444502,-150.0,0.00015899,2]
[399774769,1766663444513,-151.84637891,0.00015905,2]
[399774770,1766663444525,-281.85288871,0.00015905,2]
[399774771,1766663444536,-268.21444293,0.00015905,2]
[399774772,1766663444549,-188.33568841,0.00015905,2]
[399774774,1766663444562,-199.61844687,0.00015905,2]
[399774775,1766663444576,-389.55243689,0.00015905,2]
[399774776,1766663444587,-150.0,0.00015905,2]
[399774777,1766663444598,-150.0,0.0001591,2]
[399774778,1766663444609,-151.84637891,0.00015923,2]
[399774779,1766663444619,-281.85288871,0.00015923,2]
[399774780,1766663444630,-268.21444293,0.00015923,2]
[399774781,1766663444641,-188.33568841,0.00015923,2]
[399774782,1766663444652,-199.61844687,0.00015923,2]
[399774783,1766663444664,-389.55243689,0.00015923,2]
[399774784,1766663444675,-1600.0,0.00015923,2]
[399774786,1766663444687,-150.0,0.00015933,2]
[399774787,1766663444699,-150.0,0.00015934,2]
[399774788,1766663444711,-150.0,0.00015937,2]
[399774789,1766663444724,-151.84637891,0.0001594,2]
[399774790,1766663444737,-281.85288871,0.0001594,2]
[399774791,1766663444750,-268.21444293,0.0001594,2]
[399774792,1766663444769,-188.33568841,0.0001594,2]
[399774793,1766663444789,-199.61844687,0.0001594,2]
[399774795,1766663444804,-389.55243689,0.0001594,2]
[399774796,1766663444815,-151.84637891,0.00015957,2]
[399774797,1766663444828,-281.85288871,0.00015957,2]
[399774798,1766663444840,-268.21444293,0.00015957,2]
[399774799,1766663444853,-188.33568841,0.00015957,2]
[399774800,1766663444867,-199.61844687,0.00015957,2]
[399774801,1766663444879,-389.55243689,0.00015957,2]
[399774802,1766663444892,-150.0,0.00015957,2]
[399774803,1766663444903,-150.0,0.00015958,2]
[399774804,1766663444915,-150.0,0.00015967,2]
[399774806,1766663444926,-150.0,0.00015967,2]
[399774807,1766663444938,-151.84637891,0.00015974,2]
[399774808,1766663444949,-281.85288871,0.00015974,2]
[399774809,1766663444960,-268.21444293,0.00015974,2]
[399774810,1766663444973,-188.33568841,0.00015974,2]
[399774811,1766663444985,-199.61844687,0.00015974,2]
[399774812,1766663445000,-389.55243689,0.00015974,2]
[399774813,1766663445014,-150.0,0.00015981,2]
[399774815,1766663445025,-150.0,0.00015987,2]
[399774816,1766663445035,-151.84637891,0.00015991,2]
[399774817,1766663445048,-281.85288871,0.00015991,2]
[399774818,1766663445060,-268.21444293,0.00015991,2]
[399774819,1766663445071,-188.33568841,0.00015991,2]
[399774820,1766663445085,-199.61844687,0.00015991,2]
[399774821,1766663445096,-389.55243689,0.00015991,2]
[399774822,1766663445108,-150.0,0.00015995,2]
[399774823,1766663445119,-500.0,0.00015999,2]
[399774825,1766663445130,-500.0,0.00015999,2]
[399774826,1766663445142,-500.0,0.00015999,2]
[399774827,1766663445153,-150.0,0.00016001,2]